Cogmind - Beta 16 --- EXPLORER MODE // 2025.11.13 @ 18:03:00 Player: K.K.Y. Result: Destroyed by exploding Power Conduit Performance ------------- Evolutions (4) 2000 Regions Visited (5) 1000 Robots Destroyed (132) 660 Value Destroyed (4984) 4984 Prototype IDs (27) 540 Alien Tech Used (0) 0 Bonus (800) 800 TOTAL SCORE: 9984 Bonus ------- Registered with UFD 300 Met Optimus in HQ 500 Cogmind --------- Core Integrity 0/850 Matter 277/300 Energy 100/100 System Corruption 5% Temperature Hot (268) Movement Core (1500) Ox29 Location -6/Factory Parts ------- > --- POWER (2) -------- (None) > --- PROPULSION (4) --- (None) > --- UTILITY (8) ------ Huge Storage Unit Gravity Neutralizer Improved Signal Interpreter IFF Parser Advanced Terrain Scanner Advanced Terrain Scan Processor Faulty Experimental Targeting Computer > --- WEAPON (2) ------- Thermic Laser Impact Mace > --- INVENTORY (25) --- Advanced Heat Sink Advanced Heat Sink Hardened Heavy Armor Plating Authchip [Processor] Authchip [Weapon] Lightning Gun Improved Heavy Laser Improved EM Pulse Cannon Precision Assault Rifle Coil Gun Hypervelocity Gauss Rifle Gauss Cannon Magnetic Acceleration Cannon Heavy Flak Cannon Heavy Flak Cannon Guided EMP Blaster Long-range Missile Launcher Neutron Missile Launcher Remote Datajack Mining Laser CPS Tube (2) CPS Tube (2) Power Sword Peak State ------------ > --- POWER ------------ Enhanced Nuclear Core Fission Core > --- PROPULSION ------- Medium Treads Medium Treads Medium Treads Improved Medium Treads > --- UTILITY ---------- Advanced Heat Sink Improved Cooling System Huge Storage Unit Machine Analyzer Advanced Sensor Array Improved Signal Interpreter Improved Medium Armor Plating System Shield > --- WEAPON ----------- Hypervelocity Gauss Rifle Heavy Pick > --- INVENTORY -------- Angular Momentum Engine Light Fission Core Advanced Weight Redist. System Advanced Terrain Scan Processor Hardened Heavy Armor Plating Authchip [Processor] Authchip [Weapon] Thermic Laser Thermic Laser Improved Heavy Laser Improved EM Pulse Cannon Hypervelocity Gauss Rifle Hypervelocity Gauss Rifle Magnetic Acceleration Cannon Heavy Flak Cannon Heavy Flak Cannon Guided EMP Blaster Long-range Missile Launcher Remote Datajack Mining Laser CPS Tube CPS Tube Power Sword [Rating: 76] Favorites ----------- Power Nuclear Core Engine Ion Engine Power Core Nuclear Core Reactor Light Antimatter Reactor Propulsion Light Treads Treads Light Treads Leg Carbon-fiber Leg Utility Large Storage Unit Device Improved Heat Sink Storage Large Storage Unit Processor Improved Signal Interpreter Hackware System Shield Protection Improved Medium Armor Plating Weapon Powered Cannon Energy Gun Thermic Laser Energy Cannon Powered Cannon Ballistic Gun Assault Rifle Ballistic Cannon Heavy Flak Cannon Special Weapon Mining Laser Impact Weapon Impact Mace Piercing Weapon Heavy Pick Build | -11 -10 -10 -8 -8 -6 ------- Run | Yrd Mat Sub Rec Scr Fac Slots Evolved 9 | . 1 . . . 8 Power 1 | . . . . . 1 Propulsion 2 | . 1 . . . 1 Utility 6 | . . . . . 6 Weapon . | . . . . . . Parts Attached 74 | 6 8 2 4 2 52 Power 14 | 1 1 . 2 1 9 Engine 5 | 1 1 . 1 . 2 Core 8 | . . . 1 1 6 Reactor 1 | . . . . . 1 Propulsion 21 | 2 5 . 2 . 12 Treads 15 | 2 5 . 2 . 6 Leg 6 | . . . . . 6 Wheel . | . . . . . . Hover . | . . . . . . Flight . | . . . . . . Utility 26 | 1 2 . . 1 22 Device 13 | . 1 . . . 12 Storage 5 | 1 1 . . 1 2 Processor 4 | . . . . . 4 Hackware 1 | . . . . . 1 Protection 3 | . . . . . 3 Artifact . | . . . . . . Weapon 13 | 2 . 2 . . 9 Energy Gun 3 | . . . . . 3 Energy Cannon 1 | . . 1 . . . Ballistic Gun 4 | 2 . . . . 2 Ballistic Cannon 2 | . . . . . 2 Launcher . | . . . . . . Special Weapon 1 | . . 1 . . . Impact Weapon 1 | . . . . . 1 Slashing Weapon . | . . . . . . Piercing Weapon 1 | . . . . . 1 Special Melee Weapon . | . . . . . . Unidentified Prototypes 5 | . . . . . 5 Parts Lost 29 | . . . . . 29 Power 7 | . . . . . 7 Propulsion 9 | . . . . . 9 Utility 9 | . . . . . 9 Weapon 4 | . . . . . 4 Highest Loss Streak 6 | . . . . . 6 To Critical Strikes . | . . . . . . Average Backups 16 | 3 6 13 14 14 20 Power . | . . . . . 1 Propulsion . | 1 1 1 1 . . Utility 4 | . . 2 4 6 4 Weapon 9 | 1 3 8 8 5 11 Tool/Special . | . . . . . . Unused Backups 41 | 1 3 1 4 7 25 Power 1 | 1 . . . . . Propulsion 3 | . 3 . . . . Utility 7 | . . 1 . 1 5 Weapon 23 | . . . 4 3 16 Tool/Special 7 | . . . . 3 4 Average Slot Usage (%) 84 | . 88 92 87 88 78 Engine 4 | . 12 11 11 . 2 Core 8 | . . . 10 21 7 Treads 22 | . 36 35 33 33 10 Leg 3 | . . . . . 6 Device 12 | . 2 11 11 11 15 Storage 8 | . 12 11 11 11 5 Processor 4 | . . . . . 9 Hackware 2 | . . . . . 5 Protection 1 | . . . . . 3 Energy Gun 1 | . . . . . 2 Energy Cannon 4 | . . 3 11 11 . Ballistic Gun 4 | . 25 13 . . 1 Impact Weapon 1 | . . . . . 2 Peak Build Rating 76 | 6 12 24 32 33 76 Average Rating 41 | 2 8 15 31 32 59 On Entrance 17 | . 6 11 24 32 33 Avg Prop Armor Cover (%) 10 | . . . . . 10 Naked Turns . | . . . . . . Heaviest Build 125 | 19 30 35 42 44 125 Greatest Support 123 | 40 60 60 66 66 123 Greatest Overweight (x) 34 | 1 . . . . 34 Average Overweight (x) . | . . . . . 1 Largest Inventory Capacity 25 | 10 15 15 15 15 25 Average Capacity 18 | 5 14 15 15 15 23 Most Carried 25 | 5 15 15 15 15 25 Average Carried 17 | 3 6 13 14 14 22 Final Capacity 25 | 10 15 15 15 15 25 Final Carried 25 | 2 12 15 15 15 25 Class Distribution -------------------- 40% | Hacker-Mutant 28% | Commander-Mutant 19% | Hacker-Assassin 11% | Hacker-Skirmisher Dominant Class ---------------- Hacker-Mutant | -10/Materials Hacker-Mutant | -10/Subcaves Commander-Mutant | -8/Recycling Commander-Mutant | -8/Scraptown Hacker-Assassin | -6/Factory Resources | -11 -10 -10 -8 -8 -6 ----------- Run | Yrd Mat Sub Rec Scr Fac Matter Collected 2244 | 212 406 166 40 10 1410 Remotely . | . . . . . . Salvage Created 6673 | . 584 377 1198 . 4514 Parts 282 | . 34 26 29 . 193 Haulers Intercepted 6 | . 2 . . . 4 Recyclers Shooed 1 | . . . . . 1 Parts Field Recycled . | . . . . . . Retrieved Matter . | . . . . . . Parts Self-Destructed . | . . . . . . Prevented . | . . . . . . Parts Restored . | . . . . . . Kills | -11 -10 -10 -8 -8 -6 ------- Run | Yrd Mat Sub Rec Scr Fac Combat Hostiles Destroyed 99 | . 10 11 14 . 64 Melee 3 | . . . . . 3 Guns 39 | . 10 5 . . 24 Cannons 37 | . . 6 9 . 22 AOE 1 | . . . . . 1 Classes Destroyed 17 | . 5 3 7 . 2 Worker 3 | . 2 . . . 1 Builder 6 | . . . . . 6 Hauler 6 | . 2 . . . 4 Recycler 7 | . . . 2 . 5 Operator 2 | . . . . . 2 Turret 2 | . . 2 . . . Watcher 6 | . 3 . . . 3 Swarmer 19 | . 2 6 1 . 10 Grunt 35 | . 8 . 3 . 24 Brawler 2 | . . . 2 . . Duelist 4 | . . . 1 . 3 Protector 1 | . . . 1 . . Sentry 15 | . . . 4 . 11 Hunter 4 | . . . 2 . 2 Programmer 15 | . . . 1 . 14 Artisan 1 | . . 1 . . . Subdweller 5 | . . 5 . . . Best Kill Streak 6 | . 4 4 5 . 6 Combat Bots Only 5 | . 2 4 5 . 4 Max Kills in Single Turn 2 | . 1 1 1 . 2 Gunslinging . | . . . . . . Exploded 1 | . . . . . 1 Melee 1 | . . . . . 1 Uniques/NPCs Destroyed . | . . . . . . Combat | -11 -10 -10 -8 -8 -6 -------- Run | Yrd Mat Sub Rec Scr Fac Hostile Shots Fired 976 | . 54 84 47 . 791 Missed 325 | . 12 29 13 . 271 Hits 651 | . 42 55 34 . 520 Melee 29 | . . . 2 . 27 Projectile 622 | . 42 55 32 . 493 AOE 2 | . . . . . 2 Critical Strikes 15 | . . 1 1 . 13 Part Disruptions 2 | . . . 1 . 1 Damage Taken 5892 | . 304 523 323 . 4742 Core 1046 | . 43 103 39 . 861 Absorbed by Shields 52 | . . . . . 52 Ignored by Resistances 3624 | . 196 299 194 . 2935 Core Remaining (%) 63 | 100 . . . 26 . Volleys Fired 451 | . 48 61 46 . 296 Largest 2 | . 2 2 1 . 2 Hottest 100 | . 40 100 40 . 98 Shots Fired 543 | . 96 82 46 . 319 Gun 346 | . 96 42 . . 208 Cannon 186 | . . 29 46 . 111 Launcher . | . . . . . . Special 11 | . . 11 . . . Kinetic 293 | . 96 42 . . 155 Thermal 250 | . . 40 46 . 164 Explosive . | . . . . . . Electromagnetic . | . . . . . . Robot Hit Streak 65 | . 23 65 28 . 38 Robot Miss Streak 7 | . 2 1 1 . 7 Penetration Max 1 | . . . . . 1 Secondary Targets 4 | . 3 1 . . . Max Gunslinging Chain 1 | . 1 1 . . . Shots Hit Robots 478 | . 84 51 41 . 302 Core Hits 219 | . 31 19 15 . 154 Critical Kills 26 | . . . 5 . 21 Critical Parts Destroyed 21 | . . . . . 21 Critical Strikes 60 | . . . 5 . 55 Burn 11 | . . . . . 11 Meltdown 11 | . . . 5 . 6 Destroy 36 | . . . . . 36 Smash 1 | . . . . . 1 Impale 1 | . . . . . 1 Melee Attacks 27 | . . . . . 27 Impact 15 | . . . . . 15 Slashing . | . . . . . . Piercing 12 | . . . . . 12 Sneak Attacks 4 | . . . . . 4 Combat Hostiles . | . . . . . . Follow-up Attacks . | . . . . . . Damage Inflicted 12318 | . 1011 1043 2085 . 8179 Guns 3722 | . 1011 448 . . 2263 Cannons 7000 | . . 547 2085 . 4368 Explosions 495 | . . . . . 495 Melee 1053 | . . . . . 1053 Ramming . | . . . . . . Kinetic 2999 | . 1011 448 . . 1540 Thermal 7771 | . . 595 2085 . 5091 Explosive 495 | . . . . . 495 Electromagnetic . | . . . . . . Impact 645 | . . . . . 645 Slashing . | . . . . . . Piercing 408 | . . . . . 408 Highest Corruption 5 | . . . . . 5 Average Corruption 3 | . . . . . 3 Corruption Purged . | . . . . . . Corruption Blocked . | . . . . . . Effects 63 | . . . . . 63 Message Errors 16 | . . . . . 16 Matter Fused 16 | . . . . . 16 Heat Flow Errors 12 | . . . . . 12 Energy Discharges 8 | . . . . . 8 Parts Rejected 1 | . . . . . 1 Data Loss (minor) 3 | . . . . . 3 Data Loss (major) 4 | . . . . . 4 Misfires 2 | . . . . . 2 Alerts 1 | . . . . . 1 Overload Shots . | . . . . . . Overflow Damage 873 | . . 53 295 . 525 Projectiles 644 | . . 53 295 . 296 Explosions 36 | . . . . . 36 Melee 193 | . . . . . 193 Knockbacks 20 | . . . . . 20 Impact 3 | . . . . . 3 Kinetic 17 | . . . . . 17 Secondary . | . . . . . . Self-Inflicted Damage . | . . . . . . Shots . | . . . . . . Rammed . | . . . . . . Targets Rammed . | . . . . . . Kicked . | . . . . . . Crushed . | . . . . . . Highest Temperature 420 | . 9 10 213 . 420 Average Temperature 72 | . 3 8 59 . 81 Received Heat Transfer 2390 | . 252 213 81 . 1844 Effects 2 | . . . . . 2 Shutdowns 1 | . . . . . 1 Interference 1 | . . . . . 1 Siege Activations . | . . . . . . Martial Activations . | . . . . . . Shielding Activations . | . . . . . . Robots Disrupted . | . . . . . . Combat Hostiles . | . . . . . . Robots Corrupted 7 | . . . . . 7 Combat Hostiles 6 | . . . . . 6 Parts Fried 5 | . . . . . 5 Impact Corruptions 9 | . . . . . 9 Robots Melted 15 | . . . 5 . 10 Combat Hostiles 13 | . . . 5 . 8 Parts Melted 35 | . . 1 4 . 30 Heat Transferred 5050 | . . 100 . . 4950 Parts Sabotaged . | . . . . . . Parts Stolen . | . . . . . . Parts Stripped . | . . . . . . Power Chain Reactions . | . . . . . . Alert | -11 -10 -10 -8 -8 -6 ------- Run | Yrd Mat Sub Rec Scr Fac Maximum Alert Level . | . . . . . . Low Security (%) 100 | 100 100 . 100 . 100 Level 1 . | . . . . . . Level 2 . | . . . . . . Level 3 . | . . . . . . Level 4 . | . . . . . . Level 5 . | . . . . . . High Security . | . . . . . . Max Security . | . . . . . . Peak Influence 121 | . 50 . 90 . 121 Initial 42 | . . . 42 . . Average 9 | . 5 . 10 . 10 Influence Increases 2862 | . 285 230 321 . 2026 Destroy 0b10 Robot/C 1900 | . 200 160 260 . 1280 Destroy 0b10 Robot/NC 195 | . 35 . 55 . 105 Destroy Leader 444 | . 50 10 . . 384 Allied During Kill 1 | . . . 1 . . Successful Hack 60 | . . . . . 60 Disable Machine 76 | . . . 4 . 72 Destroy Structure 111 | . . . 1 . 110 Partial Spotted 15 | . . . . . 15 Lose Combat Pursuer 60 | . . 60 . . . Influence Decreases 2862 | . 285 110 441 . 2026 Entered New Map 78 | . . . 78 . . Time Decay 2584 | . 285 110 363 . 1826 Lost Part 130 | . . . . . 130 Lost Ally 70 | . . . . . 70 Squads Dispatched 21 | . . . . . 21 Investigation 5 | . . . . . 5 Extermination 13 | . . . . . 13 Reinforcement 2 | . . . . . 2 Assault . | . . . . . . Garrison 1 | . . . . . 1 Intercept . | . . . . . . Searches Triggered . | . . . . . . Construction Impeded . | . . . . . . Haulers Reinforced 1 | . . . . . 1 Active Scanning Responses . | . . . . . . Cargo Convoy Interrupts . | . . . . . . Stealth | -11 -10 -10 -8 -8 -6 --------- Run | Yrd Mat Sub Rec Scr Fac Distress Signals 4 | . 2 . . . 2 Communications Jammed . | . . . . . . Distress Signals . | . . . . . . Times Spotted 126 | . 15 17 13 . 81 Peak Tracking Total 6 | . 2 6 5 . 4 Tactical Retreats 1 | . . 1 . . . Traps | -11 -10 -10 -8 -8 -6 ------- Run | Yrd Mat Sub Rec Scr Fac Traps Triggered 9 | . 1 1 . . 7 Indirectly . | . . . . . . Trap Hack Attempts . | . . . . . . Triggered . | . . . . . . Disarmed . | . . . . . . Reprogrammed . | . . . . . . Reused . | . . . . . . Traps Extracted . | . . . . . . Installed . | . . . . . . Triggered . | . . . . . . Machines | -11 -10 -10 -8 -8 -6 ---------- Run | Yrd Mat Sub Rec Scr Fac Machines Disabled 20 | . . 1 1 . 18 Max in Single Turn 4 | . . 1 1 . 4 Garrison Access 1 | . . . . . 1 Machines Repaired . | . . . . . . Machines Dismantled . | . . . . . . Machines Sabotaged . | . . . . . . Overloaded Fab Kills . | . . . . . . Hacking | -11 -10 -10 -8 -8 -6 --------- Run | Yrd Mat Sub Rec Scr Fac Machines Accessed 19 | . . 3 . 3 13 Terminals 5 | . . . . . 5 Fabricators 2 | . . . . . 2 Repair Stations . | . . . . . . Recycling Units 1 | . . . . . 1 Scanalyzers 4 | . . . . . 4 Garrison Access 1 | . . . . . 1 Total Hacks 57 | . . 4 . 9 44 Successful 37 | . . 4 . 9 24 Failed 20 | . . . . . 20 Catastrophic 2 | . . . . . 2 Database Lockouts . | . . . . . . Manual 4 | . . . . . 4 Terminals 18 | . . . . . 18 Fabricators 4 | . . . . . 4 Repair Stations . | . . . . . . Recycling Units 3 | . . . . . 3 Scanalyzers 18 | . . . . . 18 Garrison Access 1 | . . . . . 1 Terminal Hacks 25 | . . 4 . 9 12 Record 3 | . . 1 . 1 1 Part Schematic 1 | . . . . . 1 Robot Schematic 2 | . . . . . 2 Robot Analysis 7 | . . . . 7 . Prototype ID Bank 1 | . . . . . 1 Open Door 1 | . . 1 . . . Level Access Points 1 | . . . . . 1 Branch Access Points 1 | . . . . . 1 Emergency Access Points 1 | . . . . . 1 Investigation Status 1 | . . . . . 1 Recall Investigation 1 | . . . . . 1 Zone Layout 2 | . . . . . 2 Proto ID Catalog 2 | . . 1 . 1 . Release Object 1 | . . 1 . . . Fabricator Hacks 2 | . . . . . 2 Load Schematic 1 | . . . . . 1 Build 1 | . . . . . 1 Repair Station Hacks . | . . . . . . Recycling Unit Hacks . | . . . . . . Scanalyzer 9 | . . . . . 9 Retrieve Study 9 | . . . . . 9 Garrison Access Hacks 1 | . . . . . 1 Seal Access 1 | . . . . . 1 Unauthorized Hacks . | . . . . . . Terminals . | . . . . . . Fabricators . | . . . . . . Repair Stations . | . . . . . . Recycling Units . | . . . . . . Scanalyzers . | . . . . . . Garrison Access . | . . . . . . Data Cores Recovered 1 | . . . . . 1 Used . | . . . . . . Hacking Detections 9 | . . . . . 9 Full Trace Events 3 | . . . . . 3 Feedback Events . | . . . . . . Feedback Blocked . | . . . . . . Robot Schematics Acquired 2 | . . . . . 2 Robots Built . | . . . . . . Authchips . | . . . . . . Time . | . . . . . . Total Robot Build Rating . | . . . . . . Part Schematics Acquired 1 | . . . . . 1 Parts Built 1 | . . . . . 1 Authchips . | . . . . . . Time 187 | . . . . . 187 Total Part Build Rating 7 | . . . . . 7 Part Studies Acquired 9 | . . . . . 9 Parts Repaired . | . . . . . . Time . | . . . . . . Parts Recycled . | . . . . . . Recycled Matter . | . . . . . . Retrieved Matter . | . . . . . . Retrieved Components . | . . . . . . Parts Scanalyzed . | . . . . . . Part Schematics Acquired . | . . . . . . Parts Damaged . | . . . . . . Bothacking | -11 -10 -10 -8 -8 -6 ------------ Run | Yrd Mat Sub Rec Scr Fac Used RIF Installer . | . . . . . . Robots Hacked . | . . . . . . Non-combat . | . . . . . . Combat . | . . . . . . Robot Hacks Applied . | . . . . . . Relay Couplers Released . | . . . . . . Fabnet Peak Effective % . | . . . . . . Robots Rewired 14 | . . . 14 . . Allies Hacked 1 | . . . 1 . . Hacks Repelled . | . . . . . . Allies | -11 -10 -10 -8 -8 -6 -------- Run | Yrd Mat Sub Rec Scr Fac Total Allies 14 | . . . 14 . . Largest Group 11 | . . . 11 11 11 Highest-Rated Group 163 | . . . 163 163 163 Highest-Rated Ally 27 | . . . 27 27 27 Total Orders . | . . . . . . Ally Attacks 11 | . . . 6 . 5 Total Damage 64 | . . . 35 . 29 Kills . | . . . . . . Allies Corrupted . | . . . . . . Allies Melted . | . . . . . . Intel | -11 -10 -10 -8 -8 -6 ------- Run | Yrd Mat Sub Rec Scr Fac Active Infowar (turns) 5384 | . . . . . 5384 Sensors 3647 | . . . . . 3647 IFF 1289 | . . . . . 1289 Terrain 2946 | . . . . . 2946 Machine Analysis 2420 | . . . . . 2420 Robot Analysis Total 7 | . . . . 7 . Derelict Logs Recovered 1 | . . 1 . . . Drone Launches . | . . . . . . Drone Recoveries . | . . . . . . Exploration | -11 -10 -10 -8 -8 -6 ------------- Run | Yrd Mat Sub Rec Scr Fac Turns Passed 13606 | 60 1367 1475 1582 2515 6607 Spaces Moved 6106 | 32 720 695 878 1528 2253 Core 16 | 11 . . . . 5 Treads 5170 | 21 720 695 878 1528 1328 Legs 920 | . . . . . 920 Wheels . | . . . . . . Hover . | . . . . . . Flight . | . . . . . . Fastest Speed 50 | 50 160 160 160 160 156 Average Speed 185 | 134 160 160 160 160 230 Slowest Speed 1750 | 160 160 160 160 160 1750 Overloaded Moves . | . . . . . . Propulsion Burnouts . | . . . . . . Robots Hopped . | . . . . . . Potential Cave-ins . | . . . . . . Cave-ins Triggered . | . . . . . . Exploration Rate (%) 64 | 3 96 35 99 91 62 Regions Visited 5 Branch Regions 3 Pre-discovered Areas 2 | . . 1 . 1 . Known Exits Taken 5 | 1 1 1 1 1 . Unknown Exits Taken . | . . . . . . Scrap Searched 10 | . . 7 . 3 . Spaces Dug 11 | . . 10 . . 1 Terrain Destroyed 131 | . . 11 1 . 119 Melee 1 | . . . . . 1 Projectile 15 | . . 11 1 . 3 AOE 107 | . . . . . 107 Terrain Rammed . | . . . . . . Walls Destroyed . | . . . . . . Machines Disabled . | . . . . . . Actions | -11 -10 -10 -8 -8 -6 --------- Run | Yrd Mat Sub Rec Scr Fac Total 7799 | 49 841 957 1022 1605 3325 Wait 936 | 4 36 194 23 57 622 Move 6101 | 31 719 694 877 1527 2253 Hop . | . . . . . . Pick Up 84 | 7 20 3 5 8 41 Fast Attach 19 | 2 1 1 1 . 14 Attach 32 | 4 3 . . . 25 Detach 3 | . 1 1 . . 1 Swap 29 | . 5 1 3 3 17 Drop 53 | 1 8 2 8 10 24 Fire 451 | . 48 61 46 . 296 Melee 27 | . . . . . 27 Ram . | . . . . . . Kick . | . . . . . . Crush . | . . . . . . Escape Stasis 5 | . . . . . 5 Rewire 59 | . . . 59 . . Trap . | . . . . . . Miscellaneous . | . . . . . . Route ------- -11/Scrapyard -10/Materials (discovered 5 exits: *Mat x3 / *Min / *Sub) -10/Subcaves (discovered 2 exits: *Mat / *Rec) -8/Recycling (discovered 2 exits: *Fac / *Scr) -8/Scraptown (discovered 2 exits: *Fac x2) -6/Factory (discovered 6 exits: *Fac x4 / *Low x2) History --------- Turn | Location | Event 21 | -11/Scrapyard | Identified exit to Materials 21 | -11/Scrapyard | Discovered exit to Materials (range 15) 61 | -11/Scrapyard | Entered Materials 61 | -10/Materials | Evolved 1 slot: Propulsion x1 164 | -10/Materials | Identified exit to Materials 164 | -10/Materials | Discovered exit to Materials (range 15) 313 | -10/Materials | Build established: Hacker-Mutant 423 | -10/Materials | Identified exit to Mines 423 | -10/Materials | Discovered exit to Mines (range 8) 561 | -10/Materials | Derelicts attacked the area 613 | -10/Materials | Discovered exit to Materials (range 16) 925 | -10/Materials | Discovered exit to Materials (range 10) 1417 | -10/Materials | Identified exit to Subcaves 1417 | -10/Materials | Discovered exit to Subcaves (range 8) 1428 | -10/Materials | Entered Subcaves 1429 | -10/Subcaves | Approached by a straggling Scientist 1753 | -10/Subcaves | Identified exit to Materials 1753 | -10/Subcaves | Discovered exit to Materials (range 13) 1920 | -10/Subcaves | Learned location of Storage (-8) 2015 | -10/Subcaves | Disturbed a concealed Subdweller 2401 | -10/Subcaves | Visited 4L-MR0's lab 2422 | -10/Subcaves | Found Powered Cannon 2423 | -10/Subcaves | Attached Powered Cannon, gained temporary slot: Power 2593 | -10/Subcaves | Ambushed by angry Subdweller bent on revenge 2674 | -10/Subcaves | A swath of the cavern ceiling suddenly collapsed 2811 | -10/Subcaves | Identified exit to Recycling 2811 | -10/Subcaves | Discovered exit to Recycling (range 12) 2815 | -10/Subcaves | Core integrity fell below 50% 2903 | -10/Subcaves | Entered Recycling 3406 | -8/Recycling | Build established: Commander-Mutant 3600 | -8/Recycling | P-60 Hacker assimilated allied Scavenger 3a 3720 | -8/Recycling | Identified exit to Factory 3720 | -8/Recycling | Discovered exit to Factory (range 12) 3764 | -8/Recycling | Scanned before Scraplab entrance 4460 | -8/Recycling | Entered Scraplab 4472 | -8/Recycling | Identified exit to Scraptown 4472 | -8/Recycling | Discovered exit to Scraptown (range 2) 4485 | -8/Recycling | Entered Scraptown 4485 | -8/Scraptown | Accompanied by 11 allies 4791 | -8/Scraptown | Discovered exit to Factory (range 5) 4912 | -8/Scraptown | Visited CR-KLE's Repair Center 4965 | -8/Scraptown | Visited The Evicted 5011 | -8/Scraptown | Visited Cyclists 5377 | -8/Scraptown | Visited Junk Repository 5463 | -8/Scraptown | Visited Junk Repository 5543 | -8/Scraptown | Visited Comm Corps 5927 | -8/Scraptown | Visited UFD Registry 5927 | -8/Scraptown | Registered with UFD as "Piperoller" 5979 | -8/Scraptown | Visited Science Guys 6034 | -8/Scraptown | Visited Botcube Research 6074 | -8/Scraptown | Visited Science Testing Area 6099 | -8/Scraptown | Visited Analyses Database 6131 | -8/Scraptown | Visited Supply Room 6188 | -8/Scraptown | Visited Research Penetration Think Tank 6224 | -8/Scraptown | Visited Scrapoid Research Area 6478 | -8/Scraptown | Visited Chapter 10 6500 | -8/Scraptown | Visited Curators Association 6559 | -8/Scraptown | Visited Scrap Suit Storage 6835 | -8/Scraptown | Met Optimus 6835 | -8/Scraptown | Accepted into 0bPrime 6937 | -8/Scraptown | Discovered exit to Factory (range 5) 7000 | -8/Scraptown | Entered Factory 7000 | -6/Factory | Accompanied by 11 allies 7000 | -6/Factory | Evolved 8 slots: Power x1, Propulsion x1, Utility x6 7218 | -6/Factory | Lost 5 allies 7477 | -6/Factory | Build established: Hacker-Skirmisher 7553 | -6/Factory | Identified exit to Factory 7553 | -6/Factory | Discovered exit to Factory (range 15) 9166 | -6/Factory | Build established: Hacker-Assassin 9794 | -6/Factory | Build established: Hacker-Mutant 9909 | -6/Factory | Lost 6 parts (1p3n1u1w) 9968 | -6/Factory | Core integrity fell below 50% 11165 | -6/Factory | Identified exit to Lower Caves 11619 | -6/Factory | Build established: Hacker-Assassin 11690 | -6/Factory | Lost 5 parts (1p1n2u1w) 12084 | -6/Factory | Build established: Hacker-Mutant 12411 | -6/Factory | Build established: Hacker-Assassin 12613 | -6/Factory | Fabricated Neutron Missile Launcher (x1) 12940 | -6/Factory | Core integrity fell below 20% 13355 | -6/Factory | Found Prototype Processor 13355 | -6/Factory | Identified Exp. Targeting Computer 13547 | -6/Factory | Garrison activated, responded to threat 13607 | -6/Factory | Destroyed by exploding Power Conduit Last Messages --------------- 13602_ B-48 Gladiator heat short circuits Lgt. Treads. 13602_ B-48 Gladiator overheating. 13603_ Power failure, Lgt. Antimatter Reactor shutdown. 13603_ B-48 Gladiator heat damages Broken Lgt. Treads, Broken Lgt. Treads, Broken Rnf. Deuterium Engine. 13603_ B-48 Gladiator overheating. 13603_ Destroyed Axe. 13603_ L-41 Fighter system corrupted by crushing effect. 13603_ L-41 Fighter knocked back. 13604_ L-41 Fighter system terminally corrupted. 13604_ B-48 Gladiator overheating. 13607_ Power Conduit explodes. 13607_ Lgt. Antimatter Reactor destroyed. 13607_ Med. Treads+ destroyed. 13607_ G-50 Soldier destroyed. 13607_ Power Conduit explodes. Map ----- +----------------------------------------------------+ | ###### ########### #### ### | | ##### ##############+##+######### ### | | ?########## + ### | | ########### ### ### | | ? ########### ##########+####### | | ? ########### ###% | | ? ? ###?####### ! | | ?????? ###?####### ###%% | | ??? ??? ##??####### ##+###+############### | | ???? ? ? ####?###### # !! ! ######### | | ??????? ? ##????##### # """ ##?###### | | ???????????? ? ? # [ """ "Y" ######### | | ?????????????? # """ " " ######### | | ????????????? ???? w # """ ######### | | ???????????????? """"""""" # ######### | | ???????????? + """ """ ######### | | ?????????????""" """"""""" # """ """ ######### | | ??????????? # """ """ ######### | | ?????????????""" """"""""" # ######### | | ??????????? ;/ ######### | | ????????????"""" ######### | | ??????????? ;#################### | | ??????????? ? ####### | | ?????????? = ####### | | ????????? [ """ """ ?"" ######? | | ????????? u @ """ """ """ ####?#? | | ????????? b ; """ """ ""?? ?#?##?? | | ????????????###+##### ; ? ?? ?##????? | | ????????????????????# ;;##+####??#??#??????? | | "???????????????????# ?????????????????? | | "???????????????????# ????????????????? | | "???????????????????# ??????????????? | | "???????????????????# ?????????????? | | ????????????????????# #???????????? | | ????????????????????# #???????????? | | ""??????????????????# #???????????? | | R"??????????????????#############+##+#???????????? | | ""???????????????????????????????????????????????? | | ?????????????????????????????????????????????????? | | ?????????????????????????????????????????????????? | | ?????????????????????????????????????????????????? | | ?????????????????????????????????????????????????? | | ?????????????????????????????????????????????????? | | ?????????????????????????????????????????????????? | | ?????????????????????????????????????????????????? | | ?????????????????????????????????????????????????? | | ?????????????????????????????????????????????????? | | ?????????????????????????????????????????????????? | | ?????????????????????????????????????????????????? | | ?????????????????????????????????????????????????? | +----------------------------------------------------+ Best States ------------- Heat Dissipation 83 Energy Generation 41 Energy Capacity 650 Matter Stores 300 Matter Capacity 300 Sight Range 16 Robot Scan Range 16 Terrain Scan Range 20 Terrain Scan Density 210 Additional Mass Support 12 Armor Coverage 450 Resistance: KI 35 Resistance: TH 35 Resistance: EX 35 Resistance: EM 35 Resistance: I 35 Resistance: S 35 Resistance: P 35 Evasion (%) 40 Recoil Reduction 4 Offensive Hacking 20 Defensive Hacking 10 Authchip Count 2 Item Schematics ----------------- Neutron Missile Launcher | -6/Factory | Hacked Robot Schematics ------------------ A-15 Conveyor | -6/Factory | Hacked T-07 Excavator | -6/Factory | Hacked Fabricated ------------ Neutron Missile Launcher | x1 | -6/Factory Repaired ---------- Nothing Studied --------- Nuclear Core | -6/Factory | Hacked Power Sword | -6/Factory | Hacked Imp. Treads | -6/Factory | Hacked Adv. Treads | -6/Factory | Hacked Med. Treads | -6/Factory | Hacked Hyp. Gauss Rifle | -6/Factory | Hacked Imp. Medium Treads | -6/Factory | Hacked Fission Core | -6/Factory | Hacked Lrn. Missile Launcher | -6/Factory | Hacked Alien Tech Used ----------------- None Achievements -------------- Hot Stuff Challenges ------------ None Game ------ Seed PlasmaStasisMatrix Manual? 0 Play Time 01:03:00 Cumulative 89.9 hours Start 2025.11.13 @ 17:00:48 End 2025.11.13 @ 18:03:00 Sessions 1 Manual Loads 0 Difficulty Explorer Special Mode None Game No. 93 Rogue 0 Adventurer 0 Explorer 93 Win Type - Total 0 Types 0/0/0/0/0/0/0/0/0/0 Lore% 58 Gallery% 56 Achievement% 44 Wizard Run 0 Options --------- Layout 1 ASCII 0 Keyboard 0 Movement Mouse Keybinds 0 Fullscreen 1 Font 24/Smallcaps Map View 50x35 Zoom Use 0% Tactical HUD 1 Map Filters NONE Filters NONE Steam 1 RUN: ca604f7a-4abd-4ef5-b32f-934fc8285661